fUSD/lending_fUSD_20240611
["ID","MTS","AMOUNT","RATE_DAILY","PERIOD"]
[329025295,1718064697079,-500.0,0.00029041,4]
[329025296,1718064697090,-500.0,0.00029041,4]
[329025297,1718064697101,-696.28213307,0.00029041,4]
[329025298,1718064697112,-3520.53,0.00029041,4]
[329025299,1718064697124,-500.0,0.00029041,4]
[329025300,1718064697134,-848.49,0.00029041,4]
[329025301,1718064697145,-3520.53,0.00029041,4]
[329025302,1718064697156,-500.0,0.00029041,4]
[329025303,1718064697167,-500.0,0.00029041,4]
[329025304,1718064697177,-500.0,0.00029041,4]
[329025305,1718064697187,-500.0,0.00029041,4]
[329025306,1718064697198,-3520.53,0.00029041,4]
[329025307,1718064697207,-848.49,0.00029041,4]
[329025308,1718064697218,-500.0,0.00029041,4]
[329025309,1718064697228,-527.63862342,0.00029041,4]
[329025310,1718064697238,-3520.53,0.00029041,4]
[329025311,1718064697346,-500.0,0.00029041,4]
[329025312,1718064697359,-848.49,0.00029041,4]
[329025313,1718064697369,-3520.53,0.00029041,4]
[329025314,1718064697380,-500.0,0.00029041,4]
[329025315,1718064697390,-848.49,0.00029041,4]
[329025316,1718064697400,-3520.53,0.00029041,4]
[329025317,1718064697411,-533.98,0.00029041,4]
[329025318,1718064697422,-848.49,0.00029041,4]
[329025319,1718064697433,-500.0,0.00029041,4]
[329025320,1718064697443,-3520.53,0.00029041,4]
[329025321,1718064697453,-848.49,0.00029041,4]
[329025322,1718064697463,-500.0,0.00029041,4]
[329025323,1718064697473,-848.49,0.00029041,4]
[329025324,1718064697485,-524.61,0.00029041,4]
[329025325,1718064697497,-3520.53,0.00029041,4]
[329025326,1718064697508,-500.0,0.00029041,4]
[329025327,1718064697518,-524.61,0.00029041,4]
[329025328,1718064697531,-500.0,0.00029041,4]
[329025329,1718064697541,-3520.53,0.00029041,4]
[329025330,1718064697552,-848.49,0.00029041,4]
[329025331,1718064697567,-500.0,0.00029041,4]
[329025332,1718064697578,-381.37187293,0.00029041,4]
[329025333,1718064697590,-524.61,0.00029041,4]
[329025334,1718064697602,-848.49,0.00029041,4]
[329025335,1718064697613,-500.0,0.00029041,4]
[329025336,1718064697624,-524.61,0.00029041,4]
[329025337,1718064697634,-848.49,0.00029041,4]
[329025338,1718064697645,-500.0,0.00029041,4]
[329025339,1718064697656,-500.0,0.00029041,4]
[329025340,1718064697666,-524.61,0.00029041,4]
[329025341,1718064697677,-848.49,0.00029041,4]
[329025342,1718064697687,-500.0,0.00029041,4]
[329025343,1718064697699,-500.0,0.00029041,4]
[329025344,1718064697711,-3520.53,0.00029041,4]
[329025345,1718064697726,-848.49,0.00029041,4]
[329025346,1718064697740,-524.61,0.00029041,4]
[329025347,1718064697753,-500.0,0.00029041,4]
[329025348,1718064697766,-3520.53,0.00029041,4]
[329025349,1718064697780,-500.0,0.00029041,4]
[329025350,1718064697793,-848.49,0.00029041,4]
[329025351,1718064697806,-524.61,0.00029041,4]
[329025352,1718064697819,-500.0,0.00029041,4]
[329025353,1718064697832,-500.0,0.00029041,4]
[329025354,1718064697845,-3520.53,0.00029041,4]
[329025355,1718064697859,-524.61,0.00029041,4]
[329025356,1718064697870,-500.0,0.00029041,4]
[329025357,1718064697882,-258.58,0.00029041,4]
[329025358,1718064697896,-3520.53,0.00029041,4]
[329025359,1718064697909,-597.62,0.00029041,4]
[329025360,1718064697923,-524.61,0.00029041,4]
[329025361,1718064697936,-848.49,0.00029041,4]
[329025362,1718064697949,-500.0,0.00029041,4]
[329025363,1718064697962,-3520.53,0.00029041,4]
[329025364,1718064697975,-597.62,0.00029041,4]
[329025365,1718064697987,-524.61,0.00029041,4]
[329025366,1718064697999,-848.49,0.00029041,4]
[329025367,1718064698011,-500.0,0.00029041,4]
[329025368,1718064698026,-3520.53,0.00029041,4]
[329025369,1718064698037,-597.62,0.00029041,4]
[329025370,1718064698052,-524.61,0.00029041,4]
[329025371,1718064698064,-500.0,0.00029041,4]
[329025372,1718064698076,-3520.53,0.00029041,4]
[329025373,1718064698087,-597.62,0.00029041,4]
[329025374,1718064698098,-500.0,0.00029041,4]
[329025375,1718064698111,-848.49,0.00029041,4]
[329025376,1718064698122,-3520.53,0.00029041,4]
[329025377,1718064698134,-524.61,0.00029041,4]
[329025378,1718064698145,-500.0,0.00029041,4]
[329025379,1718064698156,-620.47,0.00029041,4]
[329025380,1718064698166,-848.49,0.00029041,4]
[329025381,1718064698178,-3520.53,0.00029041,4]
[329025382,1718064698190,-524.61,0.00029041,4]
[329025383,1718064698200,-500.0,0.00029041,4]
[329025384,1718064698213,-597.62,0.00029041,4]
[329025385,1718064698224,-151.0,0.00029041,7]
[329025386,1718064698236,-848.49,0.00029041,4]
[329025387,1718064698246,-3520.53,0.00029041,4]
[329025388,1718064698257,-500.0,0.00029041,4]
[329025389,1718064698268,-524.61,0.00029041,4]
[329025390,1718064698279,-597.62,0.00029041,4]
[329025391,1718064698290,-500.0,0.00029041,4]
[329025392,1718064698301,-848.49,0.00029041,4]
[329025393,1718064698312,-3520.53,0.00029041,4]
[329025394,1718064698323,-151.0,0.00029041,7]
[329025395,1718064698335,-500.0,0.00029041,4]
[329025396,1718064698345,-597.62,0.00029041,4]
[329025397,1718064698358,-593.66775922,0.00029041,4]
[329025398,1718064698368,-524.61,0.00029041,4]
[329025399,1718064698378,-848.7046,0.00029041,4]
[329025400,1718064698389,-151.0,0.00029041,7]
[329025401,1718064698402,-500.0,0.00029041,4]
[329025402,1718064698414,-597.62,0.00029041,4]
[329025403,1718064698426,-524.61,0.00029041,4]
[329025404,1718064698438,-3520.53,0.00029041,4]
[329025405,1718064698450,-500.0,0.00029041,4]
[329025406,1718064698460,-597.62,0.00029041,4]
[329025407,1718064698473,-524.61,0.00029041,4]
[329025408,1718064698487,-151.0,0.00029041,7]
[329025409,1718064698499,-500.0,0.00029041,4]
[329025410,1718064698511,-3520.53,0.00029041,4]
[329025411,1718064698523,-597.62,0.00029041,4]
[329025412,1718064698537,-151.0,0.00029041,7]
[329025413,1718064698548,-500.0,0.00029041,4]
[329025414,1718064698562,-597.62,0.00029041,4]
[329025415,1718064698575,-524.61,0.00029041,4]
[329025416,1718064698592,-151.0,0.00029041,7]
[329025417,1718064698605,-500.0,0.00029041,4]
[329025418,1718064698617,-597.62,0.00029041,4]
[329025419,1718064698629,-3520.53,0.00029041,4]
[329025420,1718064698641,-524.61,0.00029041,4]
[329025421,1718064698652,-151.0,0.00029041,7]
[329025422,1718064698666,-508.58831232,0.00029041,4]
[329025423,1718064698680,-500.0,0.00029041,4]
[329025424,1718064698693,-597.62,0.00029041,4]
[329025425,1718064698707,-3520.70852909,0.00029041,4]
[329025426,1718064698719,-151.0,0.00029041,7]
[329025427,1718064698734,-597.62,0.00029041,4]
[329025428,1718064698746,-500.0,0.00029041,4]
[329025429,1718064698758,-524.61,0.00029041,4]
[329025430,1718064698772,-500.0,0.00029041,4]
[329025431,1718064698786,-597.62,0.00029041,4]
[329025432,1718064698800,-500.0,0.00029041,4]
[329025433,1718064698813,-524.61,0.00029041,4]
[329025434,1718064698825,-170.85,0.00029041,4]
[329025435,1718064698837,-597.62,0.00029041,4]
[329025436,1718064698850,-500.0,0.00029041,4]
[329025437,1718064698861,-524.61,0.00029041,4]
[329025438,1718064698873,-597.62,0.00029041,4]
[329025439,1718064698886,-500.0,0.00029041,4]
[329025440,1718064698899,-524.61,0.00029041,4]
[329025441,1718064698912,-597.62,0.00029041,4]
[329025442,1718064698925,-524.65836546,0.00029041,4]
[329025443,1718064698936,-500.0,0.00029041,4]
[329025444,1718064698948,-500.0,0.00029041,4]
[329025445,1718064698967,-597.62,0.00029041,4]
[329025446,1718064698978,-500.0,0.00029041,4]
[329025447,1718064698991,-500.0,0.00029041,4]
[329025448,1718064699004,-597.62,0.00029041,4]
[329025449,1718064699015,-500.0,0.00029041,4]
[329025450,1718064699026,-500.0,0.00029041,4]
[329025451,1718064699039,-500.0,0.00029041,4]
[329025452,1718064699050,-597.62,0.00029041,4]
[329025453,1718064699065,-151.0,0.00029041,7]
[329025454,1718064699078,-500.0,0.00029041,4]
[329025455,1718064699094,-500.0,0.00029041,4]
[329025456,1718064699110,-597.62,0.00029041,4]
[329025457,1718064699121,-500.0,0.00029041,4]
[329025458,1718064699133,-500.0,0.00029041,4]
[329025459,1718064699147,-500.0,0.00029041,4]
[329025460,1718064699158,-500.0,0.00029041,4]
[329025461,1718064699169,-597.62,0.00029041,4]
[329025462,1718064699180,-500.0,0.00029041,4]
[329025463,1718064699191,-500.0,0.00029041,4]
[329025464,1718064699202,-500.0,0.00029041,4]
[329025465,1718064699213,-597.84,0.00029041,4]
[329025466,1718064699224,-500.0,0.00029041,4]
[329025467,1718064699330,-199.74302726,0.00029041,4]
[329025468,1718064699341,-500.0,0.00029041,4]
[329025469,1718064699354,-500.0,0.00029041,4]
[329025470,1718064699364,-500.0,0.00029041,4]
[329025471,1718064699374,-500.0,0.00029041,4]
[329025472,1718064699384,-500.0,0.00029041,4]
[329025473,1718064699395,-500.0,0.00029041,4]
[329025474,1718064699405,-500.0,0.00029041,4]
[329025475,1718064699417,-500.0,0.00029041,4]
[329025476,1718064699428,-500.0,0.00029041,4]
[329025477,1718064699439,-500.0,0.00029041,4]
[329025478,1718064699450,-500.0,0.00029041,4]
[329025479,1718064699461,-576.3868601,0.00029041,4]
[329025480,1718064699472,-500.0,0.00029041,4]
[329025481,1718064699484,-500.0,0.00029041,4]
[329025482,1718064699497,-500.0,0.00029041,4]
[329025483,1718064699507,-429.12035499,0.00029041,4]
[329025484,1718064699519,-199.59,0.00029041,4]
[329025485,1718064699531,-1012.45,0.00029041,4]
[329025486,1718064699543,-500.0,0.00029041,4]
[329025487,1718064699554,-500.0,0.00029041,4]
[329025488,1718064699568,-1012.45,0.00029041,4]
[329025489,1718064699580,-500.0,0.00029041,4]
[329025490,1718064699592,-500.0,0.00029041,4]
[329025491,1718064699606,-438.87505692,0.00029041,4]
[329025492,1718064699618,-500.0,0.00029041,4]
[329025493,1718064699630,-1012.45,0.00029041,4]
[329025494,1718064699642,-500.0,0.00029041,4]
[329025495,1718064699653,-500.0,0.00029041,4]
[329025496,1718064699664,-1012.45,0.00029041,4]
[329025497,1718064699675,-500.0,0.00029041,4]
[329025498,1718064699687,-1012.45,0.00029041,4]
[329025499,1718064699698,-500.0,0.00029041,4]
[329025500,1718064699710,-500.0,0.00029041,4]
[329025501,1718064699723,-1012.45,0.00029041,4]
[329025502,1718064699735,-500.0,0.00029041,4]
[329025503,1718064699746,-500.0,0.00029041,4]
[329025504,1718064699758,-2506.63,0.00029041,4]
[329025505,1718064699770,-500.0,0.00029041,4]
[329025506,1718064699781,-1012.45,0.00029041,4]
[329025507,1718064699792,-2506.63,0.00029041,4]
[329025508,1718064699804,-500.0,0.00029041,4]
[329025509,1718064699817,-500.0,0.00029041,4]
[329025510,1718064699828,-1012.45,0.00029041,4]
[329025511,1718064699838,-1727.49,0.00029041,2]
[329025512,1718064699849,-834.5,0.00029041,2]
[329025513,1718064699862,-417.25,0.00029041,2]
[329025514,1718064699873,-850.87,0.00029041,2]
[329025515,1718064699886,-850.87,0.00029041,2]
[329025516,1718064699897,-22029.0,0.00029041,4]
[329025517,1718064699908,-150.0,0.00029096,10]
[329025518,1718064699919,-156.8502723,0.00029097,10]
[329025519,1718064699931,-519.69,0.00029097,4]
[329025520,1718064699942,-605.45,0.00029097,4]
[329025521,1718064699953,-500.0,0.00029097,4]
[329025522,1718064699965,-935.33,0.00029097,4]
[329025523,1718064699976,-500.0,0.00029097,4]
[329025524,1718064699987,-500.0,0.00029097,4]
[329025525,1718064699998,-500.0,0.00029097,4]
[329025526,1718064700010,-500.0,0.00029097,2]
[329025527,1718064700021,-500.0,0.00029097,4]
[329025528,1718064700032,-500.0,0.00029097,4]
[329025529,1718064700043,-500.0,0.00029097,4]
[329025530,1718064700055,-835.37,0.00029097,4]
[329025531,1718064700067,-500.0,0.00029097,4]
[329025532,1718064700079,-500.0,0.00029097,4]
[329025533,1718064700092,-500.0,0.00029097,4]
[329025534,1718064700104,-500.0,0.00029097,4]
[329025535,1718064700114,-721.36,0.00029097,4]
[329025536,1718064700127,-651.59,0.00029097,4]
[329025537,1718064700139,-500.0,0.00029097,4]
[329025538,1718064700151,-500.0,0.00029097,4]
[329025539,1718064700174,-500.0,0.00029097,4]
[329025540,1718064700191,-554.01,0.00029097,4]
[329025541,1718064700211,-601.79,0.00029097,4]
[329025542,1718064700235,-500.0,0.00029097,4]
[329025543,1718064700253,-500.0,0.00029097,4]
[329025544,1718064700273,-500.0,0.00029097,4]
[329025545,1718064700293,-790.0,0.00029113,2]
[329025546,1718064700310,-685.0,0.00029113,2]
[329025547,1718064700330,-1052.38,0.00029178,2]
[329025548,1718064700354,-384.09,0.00029178,2]
[329025549,1718064700372,-353.44,0.00029178,2]
[329025550,1718064700389,-422.68,0.00029178,2]
[329025551,1718064700408,-164.21,0.00029178,2]
[329025552,1718064700447,-278.92,0.00029178,2]
[329025553,1718064700467,-150.0,0.00029178,2]
[329025554,1718064700487,-150.0,0.00029178,2]
[329025555,1718064700504,-300.0,0.00029178,2]
[329025556,1718064700523,-155.32,0.00029178,2]
[329025557,1718064700546,-150.0,0.00029178,2]
[329025558,1718064700566,-150.0,0.00029178,2]
[329025559,1718064700583,-150.0,0.00029178,2]
[329025560,1718064700604,-150.0,0.00029178,2]
[329025561,1718064700621,-164.21,0.00029178,2]
[329025562,1718064700637,-422.68,0.00029178,2]
[329025563,1718064700656,-157.20854125,0.000292,2]
[329025564,1718064700674,-1000.0,0.00029218,2]
[329025565,1718064700691,-2700.0,0.00029218,2]
[329025566,1718064700710,-150.4868812,0.0002922,2]
[329025567,1718064700730,-322.26350227,0.00029235,2]
[329025568,1718064700750,-322.26350227,0.00029288,2]
[329025569,1718064700771,-154.21526058,0.0002929,2]
[329025570,1718064700792,-2000.0,0.000293,2]
[329025571,1718064700809,-2000.0,0.000293,2]
[329025572,1718064700829,-2000.0,0.0002931,2]
[329025573,1718064700849,-2000.0,0.0002931,2]
[329025574,1718064700867,-2000.0,0.0002932,2]
[329025575,1718064700884,-2000.0,0.0002932,2]
[329025576,1718064700903,-2000.0,0.0002933,2]
[329025577,1718064700920,-2000.0,0.0002933,2]
[329025578,1718064700937,-2519.401145,0.0002934,2]
[329025579,1718064700957,-2870.04785,0.0002934,2]
[329025580,1718064700973,-1878.62,0.00029374,2]
[329025581,1718064700991,-683.51,0.00029398,4]
[329025582,1718064701009,-934.22,0.00029398,4]
[329025583,1718064701027,-2023.22,0.00029398,4]
[329025584,1718064701043,-825.63,0.00029398,4]
[329025585,1718064701061,-500.0,0.00029398,4]
[329025586,1718064701085,-570.53,0.00029398,4]
[329025587,1718064701102,-156.43485649,0.00029398,4]
[329025588,1718064701118,-683.51,0.00029399,4]
[329025589,1718064701135,-683.51,0.00029399,4]
[329025590,1718064701151,-934.22,0.00029399,4]
[329025591,1718064701170,-934.22,0.00029399,4]
[329025592,1718064701192,-2023.22,0.00029399,4]
[329025593,1718064701211,-2023.22,0.00029399,4]
[329025594,1718064701230,-825.63,0.00029399,4]
[329025595,1718064701250,-825.63,0.00029399,4]
[329025596,1718064701269,-500.0,0.00029399,4]
[329025597,1718064701287,-500.0,0.00029399,4]
[329025598,1718064701303,-570.53,0.00029399,4]
[329025599,1718064701323,-570.53,0.00029399,4]
[329025600,1718064701342,-496973.0,0.000294,2]
[329025601,1718064701360,-151.0,0.000294,7]
[329025602,1718064701379,-319.636255,0.000294,7]
[329025603,1718064701396,-319.636255,0.000294,7]
[329025604,1718064701416,-1006.32,0.000294,2]
[329025605,1718064701433,-312.2,0.000294,2]
[329025606,1718064701451,-604.0,0.00029403,7]
[329025607,1718064701471,-790.0,0.00029413,2]
[329025608,1718064701495,-685.0,0.00029413,2]
[329025609,1718064701514,-154.43235661,0.00029427,2]
[329025610,1718064701532,-5746.0,0.00029461,2]
[329025611,1718064701675,-5133.0,0.00029461,2]
[329025612,1718064701688,-37361.553,0.00029461,2]
[329025613,1718064701705,-288.0,0.00029461,2]
[329025614,1718064701717,-1698.98782603,0.0002947,2]
[329025615,1718064701730,-1000.0,0.0002947,2]
[329025616,1718064701742,-10602.22501368,0.00029488,2]
[329025617,1718064701752,-226.83464883,0.000295,3]
[329025618,1718064701764,-5000.0,0.00029518,2]
[329025619,1718064701778,-154.99387401,0.00029563,2]
[329025620,1718064701791,-154.15727268,0.00029564,2]
[329025621,1718064701803,-1500.0,0.000296,2]
[329025622,1718064701815,-437.0,0.000296,2]
[329025623,1718064701827,-154.95775928,0.000296,2]
[329025624,1718064701839,-150.4868812,0.00029621,2]
[329025625,1718064701851,-5933.0,0.00029629,2]
[329025626,1718064701863,-5000.0,0.0002964,2]
[329025627,1718064701876,-150.78181346,0.00029655,2]
[329025628,1718064701888,-5000.0,0.00029661,2]
[329025629,1718064701900,-150.0,0.000297,2]
[329025630,1718064701911,-150.53471,0.000297,2]
[329025631,1718064701922,-150.452,0.000297,2]
[329025632,1718064701935,-790.0,0.00029713,2]
[329025633,1718064701947,-685.0,0.00029713,2]
[329025634,1718064701959,-304.15915553,0.00029716,2]
[329025635,1718064701970,-154.21526058,0.00029727,2]
[329025636,1718064701981,-500.0,0.00029759,2]
[329025637,1718064701993,-500.0,0.0002976,2]
[329025638,1718064702005,-200.0,0.0002976,2]
[329025639,1718064702017,-1000.0,0.00029766,2]
[329025640,1718064702029,-2700.0,0.00029766,2]
[329025641,1718064702041,-500.0,0.00029766,2]
[329025642,1718064702054,-500.0,0.00029766,2]
[329025643,1718064702067,-4000.0,0.000298,3]
[329025644,1718064702080,-12635.0,0.000298,4]
[329025645,1718064702094,-1000.0,0.000298,2]
[329025646,1718064702105,-5000.0,0.00029846,2]
[329025647,1718064702116,-151.0,0.00029846,7]
[329025648,1718064702129,-1000.0,0.0002985,2]
[329025649,1718064702145,-1000.0,0.0002985,2]
[329025650,1718064702156,-1000.0,0.0002985,2]
[329025651,1718064702168,-1000.0,0.0002985,2]
[329025652,1718064702181,-1000.0,0.0002985,2]
[329025653,1718064702193,-1000.0,0.0002985,2]
[329025654,1718064702204,-1000.0,0.0002985,2]
[329025655,1718064702217,-1000.0,0.0002985,2]
[329025656,1718064702231,-1000.0,0.0002985,2]
[329025657,1718064702247,-1000.0,0.0002985,2]
[329025658,1718064702259,-1000.0,0.0002985,2]
[329025659,1718064702271,-1000.0,0.0002985,2]
[329025660,1718064702284,-1000.0,0.0002985,2]
[329025661,1718064702296,-1000.0,0.0002985,2]
[329025662,1718064702310,-1000.0,0.0002985,2]
[329025663,1718064702324,-1000.0,0.0002985,2]
[329025664,1718064702339,-1000.0,0.0002985,2]
[329025665,1718064702352,-1000.0,0.0002985,2]
[329025666,1718064702366,-1000.0,0.0002985,2]
[329025667,1718064702378,-1000.0,0.0002985,2]
[329025668,1718064702393,-1000.0,0.0002985,2]
[329025669,1718064702406,-1000.0,0.0002985,2]
[329025670,1718064702420,-1000.0,0.0002985,2]
[329025671,1718064702431,-1000.0,0.0002985,2]
[329025672,1718064702442,-1000.0,0.0002985,2]
[329025673,1718064702453,-1000.0,0.0002985,2]
[329025674,1718064702464,-1000.0,0.0002985,2]
[329025675,1718064702476,-1000.0,0.0002985,2]
[329025676,1718064702489,-207.3151,0.0002985,2]
[329025677,1718064702503,-500.0,0.0002985,2]
[329025678,1718064702514,-500.0,0.0002985,2]
[329025679,1718064702527,-1000.0,0.0002987,2]
[329025680,1718064702538,-5000.0,0.00029882,2]
[329025681,1718064702551,-166.99392,0.00029897,4]
[329025682,1718064702564,-2100.0,0.00029897,2]
[329025683,1718064702577,-1087.79771715,0.000299,2]
[329025684,1718064702592,-5800.0,0.000299,2]
[329025685,1718064702606,-390.33825859,0.000299,2]
[329025686,1718064702617,-45567.18742846,0.000299,15]
[329025687,1718064702632,-383.65016268,0.000299,2]
[329025688,1718064702643,-1000.0,0.000299,2]
[329025689,1718064702655,-4507.5887715,0.000299,15]
[329025690,1718064702668,-1077.57410633,0.000299,2]
[329025691,1718064702684,-903.17331552,0.0002991,2]
[329025692,1718064702695,-1000.0,0.0002997,2]
[329025693,1718064702706,-1000.0,0.0002997,2]
[329025694,1718064702721,-1000.0,0.0002997,2]
[329025695,1718064702735,-1881.16859964,0.00029973,5]
[329025696,1718064702747,-1303.2854534,0.00029979,2]
[329025697,1718064702759,-1262.2582121,0.00029979,2]
[329025698,1718064702770,-1221.2309708,0.00029979,2]
[329025699,1718064702783,-1180.2037295,0.00029979,2]
[329025700,1718064702795,-1139.1764882,0.00029979,2]
[329025701,1718064702807,-8071.1648741,0.00029979,2]
[329025702,1718064702819,-7817.0857481,0.00029979,2]
[329025703,1718064702830,-7563.0066221,0.00029979,2]
[329025704,1718064702842,-7308.9274962,0.00029979,2]
[329025705,1718064702854,-7054.8483702,0.00029979,2]
[329025706,1718064702865,-639.9236516,0.00029985,2]
[329025707,1718064702877,-3281.1859084,0.00029985,2]
[329025708,1718064702888,-1046.7373337,0.00029985,2]
[329025709,1718064702899,-4014.8504161,0.00029985,2]
[329025710,1718064702911,-150.0,0.00029986,2]
[329025711,1718064702924,-322.26350227,0.00029986,2]
[329025712,1718064702935,-683.51,0.00029996,4]
[329025713,1718064702946,-934.22,0.00029996,4]
[329025714,1718064702958,-2023.22,0.00029996,4]
[329025715,1718064702969,-825.63,0.00029996,4]
[329025716,1718064702981,-500.0,0.00029996,4]
[329025717,1718064702992,-570.53,0.00029996,4]
[329025718,1718064703004,-519.69,0.00029997,4]
[329025719,1718064703015,-605.45,0.00029997,4]
[329025720,1718064703026,-610.93841129,0.00029997,4]
[329025721,1718064703037,-935.33,0.00029997,4]
[329025722,1718064703049,-500.0,0.00029997,4]
[329025723,1718064703060,-500.0,0.00029997,4]
[329025724,1718064703073,-500.0,0.00029997,4]
[329025725,1718064703092,-252.71,0.00029997,2]
[329025726,1718064703106,-500.0,0.00029997,4]
[329025727,1718064703119,-500.0,0.00029997,4]
[329025728,1718064703131,-500.0,0.00029997,4]
[329025729,1718064703143,-835.37,0.00029997,4]
[329025730,1718064703156,-500.0,0.00029997,4]
[329025731,1718064703168,-500.0,0.00029997,4]
[329025732,1718064703180,-500.0,0.00029997,4]
[329025733,1718064703193,-253.06561186,0.00029997,4]
[329025734,1718064703205,-721.36,0.00029997,4]
[329025735,1718064703218,-651.59,0.00029997,4]
[329025736,1718064703230,-500.0,0.00029997,4]
[329025737,1718064703240,-500.0,0.00029997,4]
[329025738,1718064703253,-500.0,0.00029997,4]
[329025739,1718064703264,-554.01,0.00029997,4]
[329025740,1718064703275,-601.79,0.00029997,4]
[329025741,1718064703290,-500.0,0.00029997,4]
[329025742,1718064703301,-683.51,0.00029997,4]
[329025743,1718064703313,-683.51,0.00029997,4]
[329025744,1718064703324,-683.51,0.00029997,4]
[329025745,1718064703335,-683.51,0.00029997,4]
[329025746,1718064703346,-683.51,0.00029997,4]
[329025747,1718064703359,-683.74679029,0.00029997,4]
[329025748,1718064703370,-500.0,0.00029997,4]
[329025749,1718064703380,-934.22,0.00029997,4]
[329025750,1718064703392,-934.22,0.00029997,4]
[329025751,1718064703405,-934.22,0.00029997,4]
[329025752,1718064703416,-934.22,0.00029997,4]
[329025753,1718064703427,-934.22,0.00029997,4]
[329025754,1718064703438,-934.42,0.00029997,4]
[329025755,1718064703450,-2023.22,0.00029997,4]
[329025756,1718064703461,-2023.22,0.00029997,4]
[329025757,1718064703473,-2023.22,0.00029997,4]
[329025758,1718064703487,-2023.22,0.00029997,4]
[329025759,1718064703498,-2023.22,0.00029997,4]
[329025760,1718064703511,-2023.38751229,0.00029997,4]
[329025761,1718064703523,-500.0,0.00029997,4]
[329025762,1718064703535,-825.63,0.00029997,4]
[329025763,1718064703548,-825.63,0.00029997,4]
[329025764,1718064703558,-825.63,0.00029997,4]
[329025765,1718064703571,-825.63,0.00029997,4]
[329025766,1718064703585,-825.63,0.00029997,4]
[329025767,1718064703596,-825.8577,0.00029997,4]
[329025768,1718064703609,-500.0,0.00029997,4]
[329025769,1718064703708,-500.0,0.00029997,4]
[329025770,1718064703727,-500.0,0.00029997,4]
[329025771,1718064703738,-500.0,0.00029997,4]
[329025772,1718064703749,-228.96762818,0.00029997,4]
[329025773,1718064703759,-570.53,0.00029997,4]
[329025774,1718064703770,-570.53,0.00029997,4]
[329025775,1718064703780,-570.53,0.00029997,4]
[329025776,1718064703791,-570.53,0.00029997,4]
[329025777,1718064703801,-570.53,0.00029997,4]
[329025778,1718064703811,-570.7215654,0.00029997,4]
[329025779,1718064703820,-670.21621504,0.00029998,5]
[329025780,1718064703829,-303.44271343,0.00029998,2]
[329025781,1718064703839,-799.05585964,0.00029998,2]
[329025782,1718064703849,-519.69,0.00029998,4]
[329025783,1718064703860,-519.69,0.00029998,4]
[329025784,1718064703870,-519.69,0.00029998,4]
[329025785,1718064703880,-519.69,0.00029998,4]
[329025786,1718064703891,-605.45,0.00029998,4]
[329025787,1718064703901,-605.45,0.00029998,4]
[329025788,1718064703910,-605.45,0.00029998,4]
[329025789,1718064703920,-605.45,0.00029998,4]
[329025790,1718064703930,-935.33,0.00029998,4]
[329025791,1718064703940,-935.33,0.00029998,4]
[329025792,1718064703951,-935.33,0.00029998,4]
[329025793,1718064703961,-935.33,0.00029998,4]
[329025794,1718064703971,-301.04702967,0.00029998,4]